fUSD/lending_fUSD_20240116
["ID","MTS","AMOUNT","RATE_DAILY","PERIOD"]
[311730797,1705367450032,-500.0,0.00022458,2]
[311730798,1705367450042,-500.0,0.00022458,2]
[311730799,1705367450052,-500.0,0.00022458,2]
[311730800,1705367450062,-1255.48,0.00022458,2]
[311730801,1705367450072,-500.0,0.00022458,2]
[311730802,1705367450082,-1069.96,0.00022458,2]
[311730803,1705367450092,-545.54,0.00022458,2]
[311730804,1705367450102,-818.7,0.00022458,2]
[311730805,1705367450111,-500.0,0.00022458,2]
[311730806,1705367450121,-500.0,0.00022458,2]
[311730807,1705367450131,-1221.42,0.00022458,2]
[311730808,1705367450140,-500.0,0.00022458,2]
[311730809,1705367450150,-761.06,0.00022458,2]
[311730810,1705367450159,-500.0,0.00022458,2]
[311730811,1705367450169,-645.46,0.00022458,2]
[311730812,1705367450178,-679.09,0.00022458,2]
[311730813,1705367450187,-500.0,0.00022458,2]
[311730814,1705367450196,-500.0,0.00022458,2]
[311730815,1705367450205,-502.07,0.00022458,2]
[311730816,1705367450215,-598.61,0.00022458,2]
[311730817,1705367450224,-779.79,0.00022458,2]
[311730818,1705367450233,-500.0,0.00022458,2]
[311730819,1705367450243,-715.94,0.00022458,2]
[311730820,1705367450253,-500.0,0.00022458,2]
[311730821,1705367450262,-582.4,0.00022458,2]
[311730822,1705367450272,-657.1,0.00022458,2]
[311730823,1705367450281,-1033.9,0.00022458,2]
[311730824,1705367450291,-694.4,0.00022458,2]
[311730825,1705367450301,-995.24,0.00022458,2]
[311730826,1705367450311,-676.64,0.00022458,2]
[311730827,1705367450321,-500.0,0.00022458,2]
[311730828,1705367450330,-753.21,0.00022458,2]
[311730829,1705367450340,-500.0,0.00022458,2]
[311730830,1705367450350,-500.0,0.00022458,2]
[311730831,1705367450359,-595.41,0.00022458,2]
[311730832,1705367450369,-500.0,0.00022458,2]
[311730833,1705367450379,-500.0,0.00022458,2]
[311730834,1705367450389,-769.64,0.00022458,2]
[311730835,1705367450399,-682.94,0.00022458,2]
[311730836,1705367450408,-871.75,0.00022458,2]
[311730837,1705367450418,-508.6,0.00022458,2]
[311730838,1705367450427,-500.0,0.00022458,2]
[311730839,1705367450437,-797.89,0.00022458,2]
[311730840,1705367450446,-512.45224203,0.00022458,2]
[311730841,1705367450455,-500.0,0.00022458,2]
[311730842,1705367450465,-786.17,0.00022458,2]
[311730843,1705367450474,-500.0,0.00022458,2]
[311730844,1705367450483,-150.16137694,0.00022458,2]
[311730845,1705367450493,-500.0,0.00022458,2]
[311730846,1705367450502,-510.49,0.00022458,2]
[311730847,1705367450513,-664.28,0.00022458,2]
[311730848,1705367450522,-500.0,0.00022458,2]
[311730849,1705367450532,-500.0,0.00022458,2]
[311730850,1705367450542,-559.52,0.00022458,2]
[311730851,1705367450551,-500.0,0.00022458,2]
[311730852,1705367450561,-598.77,0.00022458,2]
[311730853,1705367450573,-500.0,0.00022458,2]
[311730854,1705367450590,-510.18,0.00022458,2]
[311730855,1705367450609,-674.89,0.00022458,2]
[311730856,1705367450629,-284.66213378,0.00022458,2]
[311730857,1705367450654,-725.31,0.00022458,2]
[311730858,1705367450677,-762.61,0.00022458,2]
[311730859,1705367450699,-500.0,0.00022458,2]
[311730860,1705367450721,-500.0,0.00022458,2]
[311730861,1705367450743,-500.0,0.00022458,2]
[311730862,1705367450764,-797.37,0.00022458,2]
[311730863,1705367450785,-1467.91,0.00022458,2]
[311730864,1705367450796,-500.0,0.00022458,2]
[311730865,1705367450805,-951.8,0.00022458,2]
[311730866,1705367450815,-841.68,0.00022458,2]
[311730867,1705367450825,-772.01,0.00022458,2]
[311730868,1705367450835,-903.04,0.00022458,2]
[311730869,1705367450845,-500.0,0.00022458,2]
[311730870,1705367450855,-500.0,0.00022458,2]
[311730871,1705367450865,-500.0,0.00022458,2]
[311730872,1705367450875,-644.47,0.00022458,2]
[311730873,1705367450885,-251.09428872,0.00022458,2]
[311730874,1705367450896,-500.0,0.00022458,2]
[311730875,1705367450905,-500.0,0.00022458,2]
[311730876,1705367450914,-500.0,0.00022458,2]
[311730877,1705367450924,-500.0,0.00022458,2]
[311730878,1705367450934,-596.33,0.00022458,2]
[311730879,1705367450946,-500.0,0.00022458,2]
[311730880,1705367450956,-540.19,0.00022458,2]
[311730881,1705367450966,-500.0,0.00022458,2]
[311730882,1705367450976,-733.58,0.00022458,2]
[311730883,1705367450986,-500.0,0.00022458,2]
[311730884,1705367450996,-500.0,0.00022458,2]
[311730885,1705367451006,-515.36705432,0.00022458,2]
[311730886,1705367451016,-500.0,0.00022458,2]
[311730887,1705367451026,-500.0,0.00022458,2]
[311730888,1705367451036,-794.2,0.00022458,2]
[311730889,1705367451045,-500.0,0.00022458,2]
[311730890,1705367451055,-787.33,0.00022458,2]
[311730891,1705367451065,-500.0,0.00022458,2]
[311730892,1705367451075,-500.0,0.00022458,2]
[311730893,1705367451085,-500.0,0.00022458,2]
[311730894,1705367451094,-500.0,0.00022458,2]
[311730895,1705367451105,-721.65,0.00022458,2]
[311730896,1705367451114,-725.89,0.00022458,2]
[311730897,1705367451124,-683.12,0.00022458,2]
[311730898,1705367451136,-500.0,0.00022458,2]
[311730899,1705367451147,-585.29,0.00022458,2]
[311730900,1705367451157,-500.0,0.00022458,2]
[311730901,1705367451167,-500.0,0.00022458,2]
[311730902,1705367451178,-500.0,0.00022458,7]
[311730903,1705367451188,-590.15,0.00022458,2]
[311730904,1705367451197,-500.0,0.00022458,2]
[311730905,1705367451206,-500.0,0.00022458,2]
[311730906,1705367451217,-555.22,0.00022458,2]
[311730907,1705367451227,-917.04,0.00022458,2]
[311730908,1705367451236,-500.0,0.00022458,2]
[311730909,1705367451246,-500.0,0.00022458,2]
[311730910,1705367451255,-500.0,0.00022458,2]
[311730911,1705367451265,-587.92,0.00022458,2]
[311730912,1705367451275,-500.0,0.00022458,2]
[311730913,1705367451285,-500.0,0.00022458,2]
[311730914,1705367451294,-681.52,0.00022458,2]
[311730915,1705367451304,-713.11,0.00022458,2]
[311730916,1705367451315,-500.0,0.00022458,2]
[311730917,1705367451325,-500.0,0.00022458,2]
[311730918,1705367451336,-500.0,0.00022458,2]
[311730919,1705367451347,-500.0,0.00022458,2]
[311730920,1705367451357,-500.0,0.00022458,2]
[311730921,1705367451367,-637.72,0.00022458,2]
[311730922,1705367451377,-500.0,0.00022458,2]
[311730923,1705367451387,-501.37,0.00022458,2]
[311730924,1705367451398,-546.73,0.00022458,2]
[311730925,1705367451407,-575.41,0.00022458,2]
[311730926,1705367451417,-500.0,0.00022458,2]
[311730927,1705367451428,-500.0,0.00022458,2]
[311730928,1705367451438,-3584.02,0.00022458,2]
[311730929,1705367451448,-500.0,0.00022458,2]
[311730930,1705367451458,-730.26,0.00022458,2]
[311730931,1705367451468,-748.13,0.00022458,2]
[311730932,1705367451478,-500.0,0.00022458,2]
[311730933,1705367451488,-193.05130621,0.00022458,2]
[311730934,1705367451498,-2493.75,0.00022458,2]
[311730935,1705367451508,-757.01,0.00022458,2]
[311730936,1705367451518,-500.0,0.00022458,2]
[311730937,1705367451527,-675.59,0.00022458,2]
[311730938,1705367451700,-519.24,0.00022458,2]
[311730939,1705367451718,-1465.39,0.00022458,2]
[311730940,1705367451728,-1857.11,0.00022458,2]
[311730941,1705367451738,-500.0,0.00022458,2]
[311730942,1705367451748,-500.0,0.00022458,2]
[311730943,1705367451756,-197.31538368,0.00022458,2]
[311730944,1705367451765,-500.0,0.00022458,2]
[311730945,1705367451775,-500.0,0.00022458,2]
[311730946,1705367451785,-847.81,0.00022458,2]
[311730947,1705367451795,-3107.19,0.00022458,2]
[311730948,1705367451805,-522.89,0.00022458,2]
[311730949,1705367451815,-500.0,0.00022458,2]
[311730950,1705367451825,-795.43,0.00022458,2]
[311730951,1705367451835,-2566.58,0.00022458,2]
[311730952,1705367451845,-684.15,0.00022458,2]
[311730953,1705367451855,-500.0,0.00022458,2]
[311730954,1705367451865,-500.0,0.00022458,2]
[311730955,1705367451875,-5330.48,0.00022458,2]
[311730956,1705367451886,-1206.1,0.00022458,2]
[311730957,1705367451897,-500.0,0.00022458,2]
[311730958,1705367451906,-863.11,0.00022458,2]
[311730959,1705367451916,-1084.77,0.00022458,2]
[311730960,1705367451926,-533.31,0.00022458,2]
[311730961,1705367451936,-747.79,0.00022458,2]
[311730962,1705367451946,-500.0,0.00022458,2]
[311730963,1705367451956,-500.0,0.00022458,2]
[311730964,1705367451966,-1430.46,0.00022458,2]
[311730965,1705367451976,-561.35,0.00022458,2]
[311730966,1705367451985,-500.0,0.00022458,2]
[311730967,1705367451995,-500.0,0.00022458,2]
[311730968,1705367452006,-883.99,0.00022458,2]
[311730969,1705367452015,-577.97,0.00022458,2]
[311730970,1705367452025,-500.0,0.00022458,2]
[311730971,1705367452035,-5389.35,0.00022458,2]
[311730972,1705367452044,-683.86,0.00022458,2]
[311730973,1705367452054,-500.0,0.00022458,2]
[311730974,1705367452065,-500.0,0.00022458,2]
[311730975,1705367452076,-8866.96,0.00022458,2]
[311730976,1705367452085,-2858.9,0.00022458,2]
[311730977,1705367452095,-528.75174437,0.00022458,2]
[311730978,1705367452105,-500.0,0.00022458,2]
[311730979,1705367452115,-590.82,0.00022458,2]
[311730980,1705367452125,-500.0,0.00022458,2]
[311730981,1705367452136,-598.64,0.00022458,2]
[311730982,1705367452148,-2120.12,0.00022458,2]
[311730983,1705367452158,-831.24,0.00022458,2]
[311730984,1705367452167,-220.05120661,0.00022458,2]
[311730985,1705367452178,-1637.7,0.00022458,2]
[311730986,1705367452187,-500.0,0.00022458,2]
[311730987,1705367452197,-500.0,0.00022458,2]
[311730988,1705367452206,-536.83108364,0.00022458,2]
[311730989,1705367452215,-500.0,0.00022458,2]
[311730990,1705367452225,-263.51943444,0.00022458,2]
[311730991,1705367452234,-3729.15,0.00022458,2]
[311730992,1705367452243,-500.0,0.00022458,2]
[311730993,1705367452253,-554.25,0.00022458,2]
[311730994,1705367452262,-150.0,0.00022458,2]
[311730995,1705367452272,-1392.96,0.00022458,2]
[311730996,1705367452282,-500.0,0.00022458,2]
[311730997,1705367452292,-500.0,0.00022458,2]
[311730998,1705367452302,-716.25,0.00022458,2]
[311730999,1705367452312,-731.29,0.00022458,2]
[311731000,1705367452322,-500.0,0.00022458,2]
[311731001,1705367452332,-500.0,0.00022458,2]
[311731002,1705367452341,-790.2,0.00022458,2]
[311731003,1705367452351,-6373.58,0.00022458,2]
[311731004,1705367452361,-226.88694697,0.00022458,2]
[311731005,1705367452370,-716.5,0.00022458,2]
[311731006,1705367452380,-736.55,0.00022458,2]
[311731007,1705367452391,-500.0,0.00022458,2]
[311731008,1705367452401,-1173.23,0.00022458,2]
[311731009,1705367452413,-859.75,0.00022458,2]
[311731010,1705367452422,-1038.83,0.00022458,2]
[311731011,1705367452431,-500.0,0.00022458,2]
[311731012,1705367452440,-500.0,0.00022458,2]
[311731013,1705367452450,-559.29,0.00022458,2]
[311731014,1705367452460,-719.41,0.00022458,2]
[311731015,1705367452469,-572.62,0.00022458,2]
[311731016,1705367452480,-500.0,0.00022458,2]
[311731017,1705367452489,-500.0,0.00022458,2]
[311731018,1705367452499,-500.0,0.00022458,2]
[311731019,1705367452508,-500.0,0.00022458,2]
[311731020,1705367452518,-680.75,0.00022458,2]
[311731021,1705367452528,-1656.23,0.00022458,2]
[311731022,1705367452538,-579.24,0.00022458,2]
[311731023,1705367452551,-1178.32,0.00022458,2]
[311731024,1705367452561,-500.0,0.00022458,2]
[311731025,1705367452570,-500.0,0.00022458,2]
[311731026,1705367452579,-1556.39,0.00022458,2]
[311731027,1705367452589,-500.0,0.00022458,2]
[311731028,1705367452598,-500.0,0.00022458,2]
[311731029,1705367452607,-500.0,0.00022458,2]
[311731030,1705367452618,-500.0,0.00022458,2]
[311731031,1705367452627,-733.76,0.00022458,2]
[311731032,1705367452636,-500.0,0.00022458,2]
[311731033,1705367452648,-772.5,0.00022458,2]
[311731034,1705367452658,-681.75,0.00022458,2]
[311731035,1705367452667,-1514.15,0.00022458,2]
[311731036,1705367452677,-500.0,0.00022458,2]
[311731037,1705367452686,-500.0,0.00022458,2]
[311731038,1705367452695,-500.0,0.00022458,2]
[311731039,1705367452705,-1490.21,0.00022458,2]
[311731040,1705367452714,-874.11,0.00022458,2]
[311731041,1705367452724,-821.2,0.00022458,2]
[311731042,1705367452733,-1700.4,0.00022458,2]
[311731043,1705367452743,-500.0,0.00022458,2]
[311731044,1705367452753,-500.0,0.00022458,2]
[311731045,1705367452762,-2822.12,0.00022458,2]
[311731046,1705367452771,-500.0,0.00022458,2]
[311731047,1705367452781,-500.0,0.00022458,2]
[311731048,1705367452790,-500.0,0.00022458,2]
[311731049,1705367452800,-535.24,0.00022458,2]
[311731050,1705367452809,-769.1,0.00022458,2]
[311731051,1705367452819,-611.38,0.00022458,2]
[311731052,1705367452829,-4554.81,0.00022458,2]
[311731053,1705367452838,-1768.16,0.00022458,2]
[311731054,1705367452848,-500.0,0.00022458,2]
[311731055,1705367452858,-637.62,0.00022458,2]
[311731056,1705367452869,-516.79,0.00022458,2]
[311731057,1705367452879,-500.0,0.00022458,2]
[311731058,1705367452888,-500.0,0.00022458,2]
[311731059,1705367452899,-151.0,0.00022459,7]
[311731060,1705367452909,-169.914393,0.00022459,7]
[311731061,1705367452919,-169.914393,0.00022459,7]
[311731062,1705367452928,-1151.76,0.00022459,2]
[311731063,1705367452938,-4311.77,0.00022459,2]
[311731064,1705367452948,-2013.36,0.00022459,2]
[311731065,1705367452958,-500.0,0.00022459,2]
[311731066,1705367452967,-2900.53,0.00022459,2]
[311731067,1705367452977,-774.98,0.00022459,2]
[311731068,1705367452987,-1349.05,0.00022459,2]
[311731069,1705367452997,-500.0,0.00022459,2]
[311731070,1705367453008,-623.71,0.00022459,2]
[311731071,1705367453017,-500.0,0.00022459,2]
[311731072,1705367453028,-1294.89,0.00022459,2]
[311731073,1705367453038,-3067.69,0.00022459,2]
[311731074,1705367453048,-3247.48,0.00022459,2]
[311731075,1705367453058,-6519.47,0.00022459,2]
[311731076,1705367453067,-8337.88,0.00022459,2]
[311731077,1705367453077,-1079.19,0.00022459,2]
[311731078,1705367453086,-709.76,0.00022459,2]
[311731079,1705367453096,-500.0,0.00022459,2]
[311731080,1705367453106,-4162.99,0.00022459,2]
[311731081,1705367453116,-6872.96,0.00022459,2]
[311731082,1705367453127,-3767.92,0.00022459,2]
[311731083,1705367453146,-2407.47,0.00022459,2]
[311731084,1705367453156,-1165.11,0.00022459,2]
[311731085,1705367453166,-2195.48,0.00022459,2]
[311731086,1705367453177,-3092.74,0.00022459,2]
[311731087,1705367453187,-1733.11,0.00022459,2]
[311731088,1705367453198,-2933.67,0.00022459,2]
[311731089,1705367453207,-1668.34,0.00022459,2]
[311731090,1705367453219,-3729.15,0.00022459,2]
[311731091,1705367453229,-813.09,0.0002246,2]
[311731092,1705367453239,-6157.37,0.0002246,2]
[311731093,1705367453249,-2182.25,0.0002246,2]
[311731094,1705367453258,-151.0,0.0002246,7]
[311731095,1705367453268,-539.62,0.0002246,5]
[311731096,1705367453277,-160.510055,0.0002246,7]
[311731097,1705367453287,-3735.2,0.0002246,2]
[311731098,1705367453296,-4056.87,0.0002246,2]
[311731099,1705367453306,-154.844232,0.0002246,7]
[311731100,1705367453316,-154.844232,0.0002246,7]
[311731101,1705367453326,-2337.61,0.0002246,2]
[311731102,1705367453336,-151.0,0.0002246,7]
[311731103,1705367453345,-1554.07,0.0002246,2]
[311731104,1705367453354,-1720.31,0.0002246,2]
[311731105,1705367453364,-802.36,0.0002246,2]
[311731106,1705367453373,-2019.62,0.0002246,2]
[311731107,1705367453382,-1125.39,0.0002246,2]
[311731108,1705367453392,-783.92,0.0002246,2]
[311731109,1705367453402,-151.0,0.0002246,7]
[311731110,1705367453411,-179.048886,0.0002246,7]
[311731111,1705367453421,-151.0,0.0002246,7]
[311731112,1705367453430,-3069.83,0.0002246,2]
[311731113,1705367453440,-1679.5,0.0002246,2]
[311731114,1705367453449,-820.99,0.0002246,2]
[311731115,1705367453458,-2708.73,0.0002246,2]
[311731116,1705367453468,-993.34,0.0002246,2]
[311731117,1705367453477,-537.98625814,0.00022461,2]
[311731118,1705367453486,-500.0,0.00022461,2]
[311731119,1705367453495,-575.4,0.00022461,2]
[311731120,1705367453504,-680.06,0.00022461,2]
[311731121,1705367453514,-794.33,0.00022461,2]
[311731122,1705367453523,-876.12,0.00022461,2]
[311731123,1705367453532,-500.0,0.00022461,2]
[311731124,1705367453541,-606.35,0.00022461,2]
[311731125,1705367453551,-500.0,0.00022461,2]
[311731126,1705367453561,-756.9,0.00022461,2]
[311731127,1705367453570,-658.84,0.00022461,2]
[311731128,1705367453579,-500.0,0.00022461,2]
[311731129,1705367453588,-500.0,0.00022461,2]
[311731130,1705367453598,-632.43,0.00022461,2]
[311731131,1705367453607,-500.0,0.00022461,2]
[311731132,1705367453616,-500.0,0.00022461,2]
[311731133,1705367453626,-461.18949528,0.00022461,2]
[311731134,1705367453635,-500.0,0.00022461,2]
[311731135,1705367453646,-500.0,0.00022461,2]
[311731136,1705367453655,-500.0,0.00022461,2]
[311731137,1705367453664,-500.0,0.00022461,2]
[311731138,1705367453673,-783.41,0.00022461,2]
[311731139,1705367453683,-585.22,0.00022461,2]
[311731140,1705367453692,-500.0,0.00022461,2]
[311731141,1705367453702,-500.0,0.00022461,2]
[311731142,1705367453711,-549.05,0.00022461,2]
[311731143,1705367453721,-500.0,0.00022461,2]
[311731144,1705367453730,-658.47,0.00022461,2]
[311731145,1705367453739,-504.4,0.00022461,2]
[311731146,1705367453748,-500.0,0.00022461,2]
[311731147,1705367453758,-500.0,0.00022461,2]
[311731148,1705367453767,-500.0,0.00022461,2]
[311731149,1705367453777,-504.9,0.00022461,2]
[311731150,1705367453787,-566.92,0.00022461,2]
[311731151,1705367453795,-1109.38,0.00022461,2]
[311731152,1705367453805,-762.69,0.00022461,2]
[311731153,1705367453815,-500.0,0.00022461,2]
[311731154,1705367454235,-500.0,0.00022461,2]
[311731155,1705367454245,-500.0,0.00022461,2]
[311731156,1705367454255,-500.0,0.00022461,2]
[311731157,1705367454264,-571.09,0.00022461,2]
[311731158,1705367454274,-576.81,0.00022461,2]
[311731159,1705367454283,-500.0,0.00022461,2]
[311731160,1705367454293,-500.0,0.00022461,2]
[311731161,1705367454302,-500.0,0.00022461,2]
[311731162,1705367454311,-507.36,0.00022461,2]
[311731163,1705367454320,-500.0,0.00022461,2]
[311731164,1705367454329,-500.0,0.00022461,2]
[311731165,1705367454339,-500.0,0.00022461,2]
[311731166,1705367454349,-500.0,0.00022461,2]
[311731167,1705367454359,-609.24196075,0.00022461,2]
[311731168,1705367454368,-507.89,0.00022461,2]
[311731169,1705367454378,-728.33,0.00022461,2]
[311731170,1705367454389,-1034.17,0.00022461,2]
[311731171,1705367454398,-500.0,0.00022461,2]
[311731172,1705367454407,-500.0,0.00022461,2]
[311731173,1705367454417,-500.0,0.00022461,2]
[311731174,1705367454427,-590.94,0.00022461,2]
[311731175,1705367454437,-500.0,0.00022461,2]
[311731176,1705367454447,-500.0,0.00022461,2]
[311731177,1705367454456,-643.09,0.00022461,2]
[311731178,1705367454466,-305.63388921,0.00022461,2]
[311731179,1705367454476,-1028.21,0.00022461,2]
[311731180,1705367454486,-186.13459596,0.00022461,2]
[311731181,1705367454496,-822.0,0.00022461,2]
[311731182,1705367454505,-500.0,0.00022461,2]
[311731183,1705367454515,-500.0,0.00022461,2]
[311731184,1705367454525,-500.0,0.00022461,2]
[311731185,1705367454534,-591.3,0.00022461,2]
[311731186,1705367454544,-1014.91,0.00022461,2]
[311731187,1705367454553,-500.0,0.00022461,2]
[311731188,1705367454563,-500.0,0.00022461,2]
[311731189,1705367454573,-500.0,0.00022461,2]
[311731190,1705367454583,-500.0,0.00022461,2]
[311731191,1705367454592,-500.0,0.00022461,2]
[311731192,1705367454601,-500.0,0.00022461,2]
[311731193,1705367454611,-500.0,0.00022461,2]
[311731194,1705367454620,-500.0,0.00022461,2]
[311731195,1705367454629,-500.0,0.00022461,2]
[311731196,1705367454640,-500.0,0.00022461,2]
[311731197,1705367454649,-1032.39,0.00022461,2]
[311731198,1705367454659,-500.0,0.00022461,2]
[311731199,1705367454668,-500.0,0.00022461,2]
[311731200,1705367454678,-906.43,0.00022461,2]
[311731201,1705367454687,-500.0,0.00022461,2]
[311731202,1705367454696,-561.02,0.00022461,2]
[311731203,1705367454706,-731.22,0.00022461,2]
[311731204,1705367454715,-500.0,0.00022461,2]
[311731205,1705367454725,-605.07,0.00022461,2]
[311731206,1705367454734,-805.91,0.00022461,2]
[311731207,1705367454744,-500.0,0.00022461,2]
[311731208,1705367454754,-500.0,0.00022461,2]
[311731209,1705367454764,-601.56,0.00022461,2]
[311731210,1705367454774,-519.97358224,0.00022461,2]
[311731211,1705367454783,-1882.15,0.00022461,2]
[311731212,1705367454793,-700.48,0.00022461,2]
[311731213,1705367454803,-500.0,0.00022461,2]
[311731214,1705367454812,-500.0,0.00022461,2]
[311731215,1705367454822,-1272.91,0.00022461,2]
[311731216,1705367454831,-519.35,0.00022461,2]
[311731217,1705367454841,-500.0,0.00022461,2]
[311731218,1705367454850,-500.0,0.00022461,2]
[311731219,1705367454860,-511.82,0.00022461,2]
[311731220,1705367454869,-661.6,0.00022461,2]
[311731221,1705367454879,-500.0,0.00022461,2]
[311731222,1705367454888,-500.0,0.00022461,2]
[311731223,1705367454898,-492.56435026,0.00022461,2]
[311731224,1705367454907,-525.82,0.00022461,2]
[311731225,1705367454916,-574.85,0.00022461,2]
[311731226,1705367454925,-500.0,0.00022461,2]
[311731227,1705367454935,-500.0,0.00022461,2]
[311731228,1705367454944,-505.6,0.00022461,2]
[311731229,1705367454954,-500.0,0.00022461,2]
[311731230,1705367454964,-1093.13,0.00022461,2]
[311731231,1705367454974,-500.0,0.00022461,2]
[311731232,1705367454984,-500.0,0.00022461,2]
[311731233,1705367454994,-689.99,0.00022461,2]
[311731234,1705367455003,-570.26,0.00022461,2]
[311731235,1705367455013,-500.0,0.00022461,2]
[311731236,1705367455022,-1044.04,0.00022461,2]
[311731237,1705367455032,-500.0,0.00022461,2]
[311731238,1705367455042,-926.75,0.00022461,2]
[311731239,1705367455051,-528.03,0.00022461,2]
[311731240,1705367455062,-500.0,0.00022461,2]
[311731241,1705367455071,-844.44,0.00022461,2]
[311731242,1705367455081,-500.0,0.00022461,2]
[311731243,1705367455091,-664.03,0.00022461,2]
[311731244,1705367455100,-500.0,0.00022461,2]
[311731245,1705367455110,-611.27405725,0.00022461,2]
[311731246,1705367455120,-637.49,0.00022461,2]
[311731247,1705367455130,-500.0,0.00022461,2]
[311731248,1705367455144,-1176.25,0.00022461,2]
[311731249,1705367455153,-295.44,0.00022461,2]
[311731250,1705367455163,-1172.87,0.00022461,2]
[311731251,1705367455173,-500.0,0.00022461,2]
[311731252,1705367455183,-500.0,0.00022461,2]
[311731253,1705367455193,-500.0,0.00022461,2]
[311731254,1705367455202,-767.93,0.00022461,2]
[311731255,1705367455212,-500.0,0.00022461,2]
[311731256,1705367455221,-540.61864379,0.00022461,2]
[311731257,1705367455231,-895.94,0.00022461,2]
[311731258,1705367455240,-500.0,0.00022461,2]
[311731259,1705367455250,-500.0,0.00022461,2]
[311731260,1705367455260,-500.0,0.00022461,2]
[311731261,1705367455269,-679.09,0.00022461,2]
[311731262,1705367455279,-690.41,0.00022461,2]
[311731263,1705367455289,-500.0,0.00022461,2]
[311731264,1705367455298,-671.35,0.00022461,2]
[311731265,1705367455308,-958.1,0.00022461,2]
[311731266,1705367455318,-740.37,0.00022461,2]
[311731267,1705367455327,-500.0,0.00022461,2]
[311731268,1705367455337,-692.12,0.00022461,2]
[311731269,1705367455346,-500.0,0.00022461,2]
[311731270,1705367455356,-707.47,0.00022461,2]
[311731271,1705367455366,-727.49,0.00022461,2]
[311731272,1705367455375,-872.64,0.00022461,2]
[311731273,1705367455385,-1260.36,0.00022461,2]
[311731274,1705367455395,-500.0,0.00022461,2]
[311731275,1705367455405,-500.0,0.00022461,2]
[311731276,1705367455415,-220.85096501,0.00022461,2]
[311731277,1705367455425,-584.22,0.00022461,2]
[311731278,1705367455435,-1239.72,0.00022461,2]
[311731279,1705367455444,-500.0,0.00022461,2]
[311731280,1705367455454,-650.28,0.00022461,2]
[311731281,1705367455464,-500.0,0.00022461,2]
[311731282,1705367455475,-500.0,0.00022461,2]
[311731283,1705367455485,-500.0,0.00022461,2]
[311731284,1705367455496,-500.0,0.00022461,2]
[311731285,1705367455505,-1025.01,0.00022461,2]
[311731286,1705367455515,-621.48,0.00022461,2]
[311731287,1705367455525,-500.0,0.00022461,2]
[311731288,1705367455535,-500.0,0.00022461,2]
[311731289,1705367455546,-500.0,0.00022461,2]
[311731290,1705367455556,-921.64,0.00022461,2]
[311731291,1705367455566,-500.0,0.00022461,2]
[311731292,1705367455575,-732.85,0.00022461,2]
[311731293,1705367455585,-500.0,0.00022461,2]
[311731294,1705367455594,-624.09,0.00022461,2]
[311731295,1705367455604,-500.0,0.00022461,2]
[311731296,1705367455613,-1152.17,0.00022461,2]